bitfinex/quotes_ETHUSD_20251012
["timestamp","ask_amount","ask_price","bid_price","bid_amount"]
[1760274621966,2.60920052,3832.6,3832.4,0.002]
[1760274622581,2.60915207,3832.7,3832.4,0.002]
[1760274622759,2.60920692,3832.6,3832.4,0.002]
[1760274622962,2.60926288,3832.5,3832.4,0.002]
[1760274623472,2.71336288,3832.5,3832.4,0.002]
[1760274623676,5.26696288,3832.5,3832.4,0.002]
[1760274625455,0.1304,3832.9,3832.4,0.002]
[1760274625679,2.60926288,3832.5,3832.4,0.002]
[1760274626386,3.23520217,3832.5,3832.4,0.002]
[1760274627605,0.62593929,3832.5,3832.4,0.002]
[1760274627786,0.1304,3832.6,3832.4,0.002]
[1760274627988,2.60926288,3832.5,3832.4,0.002]
[1760274629607,2.73961415,3832.6,3832.4,0.002]
[1760274629786,2.60926288,3832.5,3832.4,0.002]
[1760274631512,0.6336,3833.1,3832.4,0.002]
[1760274631513,0.1304,3833.2,3832.4,0.5798]
[1760274631668,2.60885445,3833.1,3832.4,0.5798]
[1760274631995,2.60896559,3833.0,3832.7,0.1304]
[1760274632386,2.60886388,3833.1,3832.7,0.1304]
[1760274632695,2.60893264,3833.0,3832.7,0.1304]
[1760274632895,2.6088799,3833.1,3832.7,0.1304]
[1760274633504,0.1314,3833.4,3832.7,0.1304]
[1760274633665,2.60894463,3833.0,3832.7,0.1304]
[1760274633870,2.60871833,3833.3,3832.7,0.1304]
[1760274634670,2.60905865,3832.8,3832.4,0.002]
[1760274634889,2.6092549,3832.6,3832.4,0.002]
[1760274635672,2.60914143,3832.7,3832.4,0.002]
[1760274636506,2.60907201,3832.8,3832.4,0.002]
[1760274636695,2.60914628,3832.7,3832.4,0.002]
[1760274637068,2.60970466,3833.4,3832.5,0.4474]
[1760274637273,2.60872191,3833.3,3832.6,0.1304]
[1760274637502,2.60872191,3833.3,3832.9,0.1304]
[1760274637703,2.60965664,3833.4,3832.9,0.1304]
[1760274637917,0.001,3833.4,3833.0,0.4474]
[1760274638660,0.001,3833.4,3832.9,0.1304]
[1760274638769,0.001,3833.4,3833.1,0.4474]
[1760274638975,2.60965118,3833.4,3833.1,0.4474]
[1760274639309,2.60871907,3833.3,3832.9,0.1304]
[1760274639475,2.60871907,3833.3,3832.9,0.5778]
[1760274640110,2.60965137,3833.4,3832.9,0.5778]
[1760274640408,0.001,3833.4,3832.9,0.5778]
[1760274640613,2.6096976,3833.4,3833.0,0.4474]
[1760274640775,0.001,3833.4,3832.9,0.1304]
[1760274641112,2.60871833,3833.3,3832.9,0.1304]
[1760274641411,2.60966719,3833.4,3832.9,0.1304]
[1760274641579,2.60966719,3833.4,3832.9,0.5778]
[1760274641975,2.60873257,3833.3,3832.9,0.5778]
[1760274642487,0.001,3833.4,3833.2,0.1304]
[1760274643009,0.001,3833.4,3833.3,3.05131833]
[1760274643219,0.001,3833.4,3833.3,3.18171833]
[1760274643375,0.001,3834.2,3833.7,2.60844614]
[1760274643779,0.001,3834.2,3833.7,5.10144614]
[1760274649404,0.001,3834.2,3833.7,4.97104614]
[1760274649985,0.001,3834.2,3833.7,0.4391]
[1760274650190,0.001,3834.2,3833.7,3.04754614]
[1760274655329,0.001,3834.2,3833.7,4.96754614]
[1760274655929,0.001,3834.2,3833.7,14.9391]
[1760274656130,0.001,3834.2,3833.7,17.54754614]
[1760274657399,2.60818484,3834.1,3833.7,14.9391]
[1760274657606,0.001,3834.2,3833.7,14.9391]
[1760274658040,0.001,3834.2,3833.7,17.54754614]
[1760274659337,0.001,3834.2,3833.7,15.0695]
[1760274659539,0.001,3834.2,3833.7,17.54754614]
[1760274659704,0.001,3834.2,3833.7,17.67794614]
[1760274660428,0.001,3834.2,3833.7,18.31154614]
[1760274661633,0.001,3834.2,3833.7,20.23154614]
[1760274670553,0.001,3834.2,3834.1,3.24177401]
[1760274670725,0.001,3834.6,3834.5,5.16150194]
[1760274670927,0.001,3835.4,3835.3,3.24095796]
[1760274671248,0.001,3835.4,3835.3,17.74095796]
[1760274671453,0.001,3835.4,3835.3,18.18005796]
[1760274677056,0.001,3835.4,3835.3,20.10005796]
[1760274677960,0.001,3836.4,3835.9,3.24055012]
[1760274678160,0.001,3836.4,3835.9,5.16055012]
[1760274678461,0.001,3836.4,3835.9,5.62055012]
[1760274678662,0.001,3836.5,3836.4,3.24021036]
[1760274678868,0.001,3836.5,3836.4,5.16021036]
[1760274679073,0.001,3836.5,3836.4,5.62021036]
[1760274679435,0.001,3836.5,3836.4,20.12021036]
[1760274679847,2.136,3839.7,3836.4,20.12021036]
[1760274679848,0.2134,3839.0,3837.5,2.60584814]
[1760274680058,2.60443796,3839.6,3837.4,0.46]
[1760274680059,2.6051105,3838.7,3837.4,0.46]
[1760274680258,2.60543876,3838.2,3837.4,0.46]
[1760274680663,2.60543876,3838.2,3838.1,0.1296]
[1760274681468,2.60543876,3838.2,3838.1,14.6296]
[1760274683338,0.1296,3838.8,3838.1,14.6296]
[1760274683535,2.60538794,3838.2,3838.1,14.6296]
[1760274683756,2.60538794,3838.2,3837.1,0.46]
[1760274683757,2.60555873,3838.0,3837.1,0.46]
[1760274683955,2.60562148,3837.9,3836.3,0.2138]
[1760274684168,2.60598727,3837.4,3837.3,0.1296]
[1760274684371,2.60598727,3837.4,3837.3,14.6296]
[1760274684954,0.1306,3838.0,3837.3,15.0896]
[1760274685159,2.60579277,3837.7,3837.3,15.0896]
[1760274685388,2.60579277,3837.7,3837.4,0.46]
[1760274685556,0.1306,3838.0,3837.3,14.6296]
[1760274685753,0.001,3838.0,3837.9,0.1296]
[1760274685957,0.001,3838.0,3837.9,0.5896]
[1760274686152,0.001,3838.0,3837.9,3.19519159]
[1760274686703,0.001,3838.0,3837.9,15.0896]
[1760274688490,0.001,3838.0,3837.9,14.6296]
[1760274690089,2.60652371,3838.0,3837.9,14.6296]
[1760274690258,2.90437548,3838.0,3837.9,0.1296]
[1760274690659,2.90437548,3838.0,3837.9,14.6296]
[1760274690855,0.1296,3837.9,3837.3,0.46]
[1760274691061,0.29885177,3838.0,3837.5,0.1296]
[1760274691062,2.60579528,3837.6,3837.5,0.1296]
[1760274691312,2.60579528,3837.6,3837.5,14.6296]
[1760274692108,0.001,3838.0,3837.5,15.0896]
[1760274692313,0.001,3838.0,3837.9,0.1296]
[1760274692693,2.60652371,3838.0,3837.9,0.1296]
[1760274693298,0.001,3838.0,3837.9,3.19519159]
[1760274694121,0.001,3838.0,3837.9,17.69519159]
[1760274695425,0.001,3838.0,3837.9,18.32879159]
[1760274698032,0.001,3838.0,3837.9,20.24879159]
[1760274698696,0.001,3838.0,3837.9,20.11919159]
[1760274698910,0.001,3838.0,3837.9,20.24879159]
[1760274702761,0.001,3838.0,3837.9,19.61519159]
[1760274702943,0.001,3838.0,3837.9,20.24879159]
[1760274703148,0.001,3838.0,3837.9,19.61519159]
[1760274703525,0.001,3838.0,3837.9,20.24879159]
[1760274705162,0.001,3838.0,3837.9,20.11919159]
[1760274705837,0.001,3838.0,3837.9,18.19919159]
[1760274706043,0.001,3838.0,3837.9,20.11919159]
[1760274715300,0.001,3838.0,3837.9,20.24879159]
[1760274719106,0.001,3838.0,3837.9,19.61519159]
[1760274719392,0.001,3838.0,3837.9,17.0096]
[1760274719689,0.001,3838.0,3837.9,19.61519159]
[1760274721095,0.001,3838.0,3837.9,19.60919159]
[1760274723498,0.001,3838.0,3837.9,14.6296]
[1760274724204,0.001,3838.0,3837.9,15.0836]
[1760274726091,0.001,3838.0,3837.9,14.6296]
[1760274726493,0.001,3838.0,3837.9,17.68919159]
[1760274727215,0.001,3838.0,3837.9,19.60919159]
[1760274727515,0.001,3838.0,3837.9,20.24279159]
[1760274727665,0.001,3838.4,3838.3,3.23892006]
[1760274727866,0.001,3838.8,3838.7,4.52504858]
[1760274728080,0.001,3838.8,3838.7,4.65464858]
[1760274728282,0.001,3838.8,3838.7,19.60864858]
[1760274728500,0.001,3838.8,3838.7,17.0036]
[1760274728806,0.001,3838.8,3838.7,19.60864858]
[1760274729841,0.001,3838.8,3838.7,20.24224858]
[1760274731534,0.001,3838.8,3838.7,17.0036]
[1760274731734,0.001,3838.8,3838.7,19.60864858]
[1760274731945,0.001,3838.8,3838.7,17.0036]
[1760274732106,0.001,3838.8,3838.7,19.60864858]
[1760274736472,2.60598072,3838.8,3838.7,14.5]
[1760274737577,0.001,3838.8,3838.7,14.5]
[1760274738543,0.001,3838.8,3838.7,14.9329]
[1760274741174,0.001,3838.8,3838.7,17.53794858]
[1760274741340,0.001,3838.8,3838.7,14.9329]
[1760274742071,0.001,3838.8,3838.7,17.53794858]
[1760274743038,0.001,3838.8,3838.7,20.09154858]
[1760274746554,0.001,3838.8,3838.7,20.22114858]
[1760274747791,0.001,3838.8,3838.7,19.58754858]
[1760274759505,0.001,3838.8,3838.7,20.22114858]
[1760274773977,0.001,3838.8,3838.7,16.9825]
[1760274774125,0.001,3838.8,3838.7,15.0625]
[1760274775237,2.60598072,3838.8,3838.7,14.6296]
[1760274775403,3.08067879,3838.8,3838.7,14.6296]
[1760274775605,2.86657879,3838.8,3838.7,14.6296]
[1760274776212,0.26159807,3838.8,3838.7,14.6296]
[1760274776413,0.001,3838.8,3838.7,14.6296]
[1760274776630,0.001,3838.8,3838.7,17.70894858]
[1760274782075,0.001,3839.2,3838.8,52.60391377]
[1760274782246,0.001,3839.2,3839.0,2.60483276]
[1760274782447,0.001,3839.2,3839.1,0.1296]
[1760274782655,0.001,3839.2,3839.1,0.6039]
[1760274784739,0.001,3839.2,3839.1,0.1296]
[1760274784964,2.81900931,3839.2,3839.1,0.1296]
[1760274785168,2.60570931,3839.2,3839.1,14.6296]
[1760274785370,3.12674315,3839.2,3839.1,14.6296]
[1760274785574,3.34004315,3839.2,3839.1,14.5]
[1760274785976,2.60484501,3839.0,3838.9,0.1296]
[1760274786377,2.60484501,3839.0,3838.9,14.6296]
[1760274786572,2.81814501,3839.0,3838.9,14.6296]
[1760274786780,3.41263383,3839.0,3838.9,14.6296]
[1760274787443,3.41263383,3839.0,3838.8,49.999]
[1760274787444,2.60491286,3838.9,3838.8,49.999]
[1760274787662,2.81821286,3838.9,3838.8,49.999]
[1760274788436,4.73821286,3838.9,3838.8,49.999]
[1760274790439,4.52491286,3838.9,3838.8,49.999]
[1760274790640,4.73821286,3838.9,3838.8,49.999]
[1760274790846,5.5757951,3838.9,3838.8,49.999]
[1760274792050,2.60576678,3839.2,3838.8,50.6029]
[1760274792365,2.60478197,3839.1,3838.8,50.6029]
[1760274792969,2.6048682,3839.0,3838.9,14.5]
[1760274793355,0.001,3839.2,3838.9,14.5]
[1760274793555,2.60575237,3839.2,3838.9,14.5]
[1760274794081,2.60575237,3839.2,3839.0,0.4743]
[1760274794082,0.001,3839.2,3839.0,0.4743]
[1760274794285,0.001,3839.2,3839.1,0.6039]
[1760274794646,0.001,3839.2,3839.1,14.6296]
[1760274795196,2.81890931,3839.2,3839.1,14.6296]
[1760274795352,2.60491286,3838.9,3838.8,49.999]
[1760274795693,2.81811286,3838.9,3838.8,49.999]
[1760274795864,2.81811286,3838.9,3838.8,64.499]
[1760274798206,2.60491286,3838.9,3838.8,64.499]
[1760274799995,2.60491286,3838.9,3838.8,49.999]
[1760274799996,2.81811286,3838.9,3838.8,49.999]
[1760274800203,3.4147425,3838.9,3838.8,49.999]
[1760274800992,5.3347425,3838.9,3838.8,49.999]
[1760274801902,5.9683425,3838.9,3838.8,1e-08]
[1760274802119,5.1215425,3838.9,3838.8,1e-08]
[1760274802277,3.4147425,3838.9,3838.8,1e-08]
[1760274803801,0.59662964,3838.9,3838.8,1e-08]
[1760274803977,0.001,3839.2,3838.8,1e-08]
[1760274805289,0.001,3839.2,3838.8,0.00200001]
[1760274805510,0.001,3838.9,3838.8,0.00200001]
[1760274807018,2.81911286,3838.9,3838.8,0.00200001]
[1760274807204,2.94871286,3838.9,3838.8,0.00200001]
[1760274807410,3.50416719,3838.9,3838.8,0.00200001]
[1760274807720,0.76965433,3838.9,3838.8,0.00200001]
[1760274808084,3.37456719,3838.9,3838.8,0.00200001]
[1760274809783,0.55645433,3838.9,3838.8,0.00200001]
[1760274810002,0.001,3838.9,3838.8,0.00200001]
[1760274811923,2.81911286,3838.9,3838.8,0.00200001]
[1760274812514,0.001,3838.9,3838.8,0.00200001]
[1760274813217,0.001,3838.9,3838.8,3.20048073]
[1760274816224,0.001,3838.9,3838.8,17.70048073]
[1760274817994,0.001,3838.9,3838.8,14.63160001]
[1760274818295,0.001,3838.9,3838.8,15.09550001]
[1760274819547,0.001,3838.9,3838.8,17.70048073]
[1760274820215,0.001,3838.9,3838.8,14.63160001]
[1760274820415,0.001,3838.9,3838.8,15.09550001]
[1760274820859,0.001,3838.9,3838.8,14.63160001]
[1760274821150,0.001,3838.9,3838.8,15.09550001]
[1760274821821,0.001,3838.9,3838.8,14.63160001]
[1760274822818,2.60591286,3838.9,3838.8,14.63160001]
[1760274823031,3.1486458,3838.9,3838.8,14.63160001]
[1760274823853,3.1486458,3838.9,3838.8,0.00200001]
[1760274823854,3.3643458,3838.9,3838.8,0.00200001]
[1760274831277,7.3579458,3838.9,3838.8,0.00200001]
[1760274832382,5.9179458,3838.9,3838.8,0.00200001]
[1760274834263,6.32648139,3838.9,3838.8,0.00200001]
[1760274838195,3.23878431,3838.5,3838.4,1e-08]
[1760274838410,2.60572738,3837.7,3837.6,0.002]
[1760274838596,4.52572738,3837.7,3837.6,0.002]
[1760274838792,4.74042738,3837.7,3837.6,0.002]
[1760274840796,0.3271,3838.4,3837.6,0.002]
[1760274841105,2.60522653,3838.5,3837.6,0.4622]
[1760274841272,2.60538928,3838.2,3837.7,14.5]
[1760274841466,1.92,3838.8,3837.7,14.5]
[1760274841675,2.60564083,3837.9,3837.7,14.5]
[1760274841876,1.92,3838.5,3837.7,14.9602]
[1760274842075,0.1013,3838.6,3837.7,14.9602]
[1760274842289,2.60539444,3838.2,3837.7,14.9602]
[1760274843010,2.60546577,3838.1,3838.0,0.002]
[1760274843309,2.60538564,3838.3,3838.0,0.002]
[1760274843523,2.60518656,3838.5,3838.0,0.002]
[1760274843719,2.60533933,3838.3,3838.0,0.002]
[1760274844007,2.60545582,3838.1,3838.0,0.002]
[1760274845070,2.60540242,3838.2,3838.0,0.002]
[1760274845273,2.60533849,3838.3,3838.0,0.002]
[1760274845683,0.001,3838.9,3838.0,0.002]
[1760274846072,2.60506594,3838.7,3838.0,0.002]
[1760274846477,2.60506594,3838.7,3838.0,2.60752178]
[1760274846676,2.60506594,3838.7,3838.0,0.002]
[1760274846877,2.60512326,3838.6,3838.0,0.002]
[1760274847110,2.60502711,3838.8,3838.0,3.06771276]
[1760274847310,0.001,3838.9,3838.3,2.60528515]
[1760274847512,0.001,3838.9,3838.0,0.002]
[1760274847680,0.1013,3838.8,3838.0,0.002]
[1760274847879,2.60545246,3838.2,3838.0,0.002]
[1760274848313,2.60545582,3838.1,3838.0,0.002]
[1760274848511,2.60540734,3838.2,3838.0,0.002]
[1760274849080,2.60545582,3838.1,3838.0,0.002]
[1760274849276,0.1013,3838.3,3838.0,0.002]
[1760274849277,2.70663532,3838.3,3838.0,0.002]
[1760274849695,2.60533532,3838.3,3838.0,0.002]
[1760274850607,2.73479424,3838.5,3838.0,0.002]
[1760274850804,2.60537663,3838.3,3838.0,0.002]
[1760274851006,2.60540468,3838.2,3838.0,0.002]
[1760274852322,0.1013,3838.3,3838.0,0.002]
[1760274852323,2.70675582,3838.1,3838.0,0.002]
[1760274855521,0.1296,3838.5,3838.1,2.6054528]
[1760274855826,2.60505141,3838.7,3838.1,0.4602]
[1760274856235,2.73459774,3838.8,3838.1,0.4602]
[1760274856529,3.27877223,3838.8,3838.1,0.4602]
[1760274857019,2.60506652,3838.7,3838.1,0.4602]
[1760274857626,3.27876831,3838.8,3838.1,0.4602]
[1760274858224,0.67377449,3838.8,3838.1,0.4602]
[1760274858430,2.60506868,3838.7,3838.1,0.4602]
[1760274858639,2.60506868,3838.7,3838.0,2.73711893]
[1760274858840,3.27877527,3838.8,3838.1,3.03624648]
[1760274859147,0.32797753,3838.7,3838.1,0.4308]
[1760274859453,0.001,3838.9,3838.1,0.4308]
[1760274859745,0.001,3838.9,3838.6,2.73471218]
[1760274860122,0.001,3838.9,3838.6,0.5604]
[1760274860327,0.001,3838.8,3838.6,0.5604]
[1760274861052,0.001,3838.8,3838.6,0.1296]
[1760274861724,0.001,3838.8,3838.0,0.002]
[1760274861725,2.60511644,3838.6,3838.0,0.002]
[1760274862045,0.1013,3838.5,3838.0,0.002]
[1760274862244,2.60525654,3838.4,3838.0,0.002]
[1760274862444,2.70655654,3838.4,3838.0,0.002]
[1760274862645,2.88895233,3838.3,3838.0,0.002]
[1760274862867,0.28361565,3838.3,3838.0,0.002]
[1760274863149,2.70663904,3838.3,3838.0,0.002]
[1760274863642,2.73471994,3838.6,3838.0,0.002]
[1760274863643,2.60521033,3838.5,3838.0,0.002]
[1760274863816,0.2309,3838.6,3838.0,0.002]
[1760274864018,0.1296,3838.6,3838.0,0.4328]
[1760274864219,0.1296,3838.6,3838.0,17.53830038]
[1760274864424,0.1296,3838.6,3838.0,14.9328]
[1760274864730,2.73476153,3838.6,3838.0,14.502]
[1760274864934,0.1296,3838.6,3838.0,14.502]
[1760274865144,0.1296,3838.6,3838.1,2.73504436]
[1760274866051,0.1296,3838.6,3838.2,2.60536145]
[1760274866451,0.1296,3838.6,3838.1,2.73503127]
[1760274867051,0.40325835,3838.6,3838.1,0.1296]
[1760274867347,0.1296,3838.6,3838.1,0.1296]
[1760274867657,0.1023,3838.8,3838.0,14.502]
[1760274867658,0.001,3838.8,3838.7,2.60504858]
[1760274867822,0.001,3838.8,3838.2,0.4308]
[1760274868022,0.001,3838.8,3838.3,2.60531492]
[1760274868353,0.1013,3838.7,3838.0,17.10747513]
[1760274868530,0.63261759,3838.7,3838.0,17.10747513]
[1760274868737,0.63261759,3838.7,3838.1,2.60544799]
[1760274869051,0.63261759,3838.7,3838.1,2.60544851]
[1760274869433,2.60511644,3838.6,3838.0,14.502]
[1760274869635,2.9291068,3838.5,3838.0,14.502]
[1760274869843,0.3238734,3838.5,3838.0,14.502]
[1760274870150,0.001,3838.8,3838.3,2.60527753]
[1760274870856,2.70730105,3838.8,3838.1,2.60539428]
[1760274871620,2.60514964,3838.6,3838.0,14.502]
[1760274871838,0.001,3838.8,3838.7,2.60504858]
[1760274872244,0.001,3838.8,3838.7,3.03584858]
[1760274872648,0.001,3838.8,3838.7,17.53584858]
[1760274873007,0.001,3838.8,3838.7,14.9308]
[1760274874454,0.001,3838.8,3838.7,17.53584858]
[1760274877777,0.001,3838.8,3838.7,17.66544858]
[1760274878868,0.001,3838.8,3838.7,14.6296]
[1760274881684,0.001,3838.8,3838.7,15.0604]
[1760274882013,0.001,3838.8,3838.7,17.66544858]
[1760274883110,0.001,3838.8,3838.7,15.0604]
[1760274886010,0.001,3838.8,3838.7,14.6296]
[1760274887813,0.1023,3838.8,3838.7,14.5]
[1760274887998,0.37312007,3838.8,3838.7,14.5]
[1760274888196,2.70728072,3838.8,3838.7,14.5]
[1760274888615,2.60511649,3838.6,3838.4,0.1296]
[1760274889012,2.60506344,3838.7,3838.5,14.5]
[1760274889693,2.60511644,3838.6,3838.5,14.5]
[1760274889887,3.12632072,3838.6,3838.5,14.5]
[1760274890084,0.52120428,3838.6,3838.5,14.5]
[1760274891024,3.12632072,3838.6,3838.5,14.5]
[1760274891516,0.52120428,3838.6,3838.5,14.5]
[1760274893924,3.12632072,3838.6,3838.5,14.5]
[1760274895327,0.52120428,3838.6,3838.5,14.5]
[1760274900652,3.12632072,3838.6,3838.5,14.5]
[1760274900839,2.60545582,3838.1,3838.0,0.002]
[1760274901454,2.70675582,3838.1,3838.0,0.002]
[1760274901628,3.34035582,3838.1,3838.0,0.002]
[1760274902816,2.70675582,3838.1,3838.0,0.002]
[1760274903944,0.67453089,3838.5,3838.0,0.002]
[1760274904151,2.60544385,3838.2,3838.0,0.002]
[1760274904324,2.60534321,3838.3,3838.0,0.002]
[1760274904529,0.1013,3838.1,3838.0,0.002]
[1760274904839,2.70675582,3838.1,3838.0,0.002]
[1760274905026,3.237968,3838.1,3838.0,0.002]
[1760274907558,0.53121218,3838.1,3838.0,0.002]
[1760274907839,2.83627085,3838.3,3838.0,0.002]
[1760274908053,2.60539731,3838.2,3838.0,0.002]
[1760274908223,2.70669731,3838.2,3838.0,0.002]
[1760274909122,0.1296,3838.3,3838.0,0.002]
[1760274909360,0.1296,3838.5,3838.0,0.4381]
[1760274909671,0.1296,3838.5,3838.0,14.502]
[1760274909854,0.77510685,3838.5,3838.0,14.502]
[1760274910576,0.77510685,3838.5,3838.0,17.1075058]
[1760274911428,0.77510685,3838.5,3838.0,14.502]
[1760274911741,0.1013,3838.4,3838.0,14.502]
[1760274912256,0.1013,3838.4,3838.0,17.10751875]
[1760274912773,0.1013,3838.4,3838.0,14.502]
[1760274913131,0.1013,3838.4,3838.0,17.10752142]
[1760274913535,0.001,3838.8,3838.1,0.4361]
[1760274913885,0.001,3838.8,3838.7,2.60504858]
[1760274914172,0.001,3838.8,3838.7,17.23464858]
[1760274914467,0.001,3838.8,3838.7,19.59074858]
[1760274917683,0.001,3838.8,3838.7,20.22434858]
[1760274920555,1e-08,3839.2,3839.1,3.23837716]
[1760274920773,1e-08,3839.7,3839.6,4.52443796]
[1760274921267,1e-08,3839.7,3839.6,19.46693796]
[1760274921467,1e-08,3839.7,3839.6,20.10053796]
[1760274923312,1e-08,3839.7,3839.6,19.46693796]
[1760274925076,1e-08,3839.7,3839.6,20.10053796]
[1760274930717,1e-08,3839.7,3839.6,20.23013796]
[1760274933908,1e-08,3839.7,3839.6,19.59653796]
[1760274934720,1e-08,3839.7,3839.6,20.23013796]
[1760274935408,1e-08,3839.7,3839.6,19.59653796]
[1760274937524,1e-08,3839.7,3839.6,20.10053796]
[1760274944737,1e-08,3839.7,3839.6,20.10253796]
[1760274945861,1e-08,3839.7,3839.6,20.48915607]
[1760274947683,1e-08,3839.7,3839.6,20.61875607]
[1760274948565,1e-08,3839.7,3839.6,20.33650044]
[1760274953870,1e-08,3839.7,3839.6,20.10253796]
[1760274954252,1e-08,3839.7,3839.6,19.46893796]
[1760274959099,1e-08,3839.7,3839.6,17.54893796]
[1760274959468,1e-08,3839.7,3839.6,19.46893796]
[1760274960854,1e-08,3839.7,3839.6,17.54893796]
[1760274961269,2.60491286,3838.9,3838.8,0.002]
[1760274961469,0.26049129,3838.9,3838.8,0.002]
[1760274961789,0.26049129,3838.9,3838.8,0.4439]
[1760274961992,2.60437162,3839.7,3838.8,3.04888072]
[1760274962195,3.23810579,3839.5,3838.8,0.002]
[1760274962492,2.60464594,3839.3,3838.8,0.002]
[1760274962668,2.71208011,3839.4,3838.8,0.002]
[1760274962866,0.6336,3839.1,3838.8,0.002]
[1760274963201,5.15851286,3838.9,3838.8,0.002]
[1760274963403,5.94559186,3838.9,3838.8,0.002]
[1760274963604,3.23905582,3838.1,3838.0,0.002]
[1760274964093,5.26455582,3838.1,3838.0,0.002]
[1760274964981,5.15912371,3838.0,3837.9,1e-08]
[1760274965284,6.63248761,3838.0,3837.9,1e-08]
[1760274965611,6.63248761,3838.0,3837.3,0.002]
[1760274965612,5.15939528,3837.6,3837.5,1e-08]
[1760274965914,5.15939528,3837.6,3836.5,0.002]
[1760274965915,2.5536,3836.6,3836.5,0.002]
[1760274966214,3.24007448,3836.6,3836.5,0.002]
[1760274966365,3.35297448,3836.6,3836.5,0.002]
[1760274966564,4.14090992,3836.6,3836.5,0.002]
[1760274967699,6.46966363,3836.6,3836.5,0.002]
[1760274968595,6.06090992,3836.6,3836.5,0.002]
[1760274970663,0.90083544,3836.6,3836.5,0.002]
[1760274970883,0.1129,3836.6,3836.5,0.002]
[1760274971475,4.63937448,3836.6,3836.5,0.002]
[1760274971892,5.27297448,3836.6,3836.5,0.002]
[1760274972473,5.68177196,3836.6,3836.5,0.002]
[1760274972904,5.68177196,3836.6,3833.5,2.60858223]
[1760274972905,0.6336,3834.6,3833.5,2.60858223]
[1760274973073,0.6336,3834.4,3833.7,2.60841966]
[1760274973270,0.6336,3834.4,3833.8,17.10837179]
[1760274973478,0.6336,3834.4,3833.8,14.5]
[1760274973677,0.6336,3834.4,3833.9,2.60831007]
[1760274973975,0.7465,3834.4,3833.9,2.60831007]
[1760274974280,0.58490087,3834.6,3833.8,14.5]
[1760274974281,0.6336,3834.5,3833.8,14.5]
[1760274974597,0.1129,3834.3,3833.9,2.60830734]
[1760274975378,0.1129,3834.3,3834.0,2.60821043]
[1760274975579,0.1129,3834.3,3834.1,2.6081512]
[1760274975903,0.7632,3834.9,3834.2,2.73848821]
[1760274976106,0.6336,3834.6,3834.2,0.1304]
[1760274976278,0.6336,3834.6,3834.0,0.1304]
[1760274976475,2.60803027,3834.4,3833.8,14.5]
[1760274976681,0.8538,3833.9,3833.8,14.5]
[1760274976920,0.9656,3833.9,3833.8,14.5]
[1760274978213,1.32297268,3833.9,3833.8,14.5]
[1760274978410,1.32297268,3833.9,3833.8,0.002]
[1760274980586,0.9656,3833.9,3833.8,0.002]
[1760274984703,0.3298,3834.4,3833.9,2.60826345]
[1760274984887,0.3298,3834.3,3833.9,2.60826345]
[1760274985090,2.60728998,3835.4,3833.8,0.002]
[1760274985091,2.607222,3835.5,3833.8,2.61036811]
[1760274985300,0.226,3834.4,3834.1,2.60811527]
[1760274985480,0.226,3834.4,3833.8,0.002]
[1760274985481,0.1061,3834.3,3834.0,2.60821892]
[1760274985682,0.226,3834.4,3833.8,0.002]
[1760274985683,0.1061,3834.2,3833.8,0.002]
[1760274985883,0.6336,3834.1,3833.8,0.002]
[1760274986083,1.09707491,3834.1,3833.8,0.002]
[1760274986304,0.7397,3834.1,3833.8,0.002]
[1760274986493,0.6336,3833.9,3833.8,0.002]
[1760274986703,0.764,3833.9,3833.8,0.002]
[1760274986904,0.8701,3833.9,3833.8,0.002]
[1760274987105,1.47875094,3833.9,3833.8,0.002]
[1760274987614,0.8701,3833.9,3833.8,0.002]
[1760274988210,0.764,3833.9,3833.8,0.002]
[1760274988382,0.8701,3833.9,3833.8,0.002]
[1760274993994,0.1061,3834.3,3833.8,0.002]
[1760274994216,0.1061,3833.9,3833.8,0.002]
[1760274995023,0.51728825,3833.9,3833.8,0.002]
[1760274995517,1.15088825,3833.9,3833.8,0.002]
[1760274995889,0.7397,3833.9,3833.8,0.002]
[1760274996825,5.26801007,3833.9,3833.8,0.002]
[1760275000396,4.63441007,3833.9,3833.8,0.002]
[1760275000796,5.26801007,3833.9,3833.8,0.002]
[1760275002022,4.63441007,3833.9,3833.8,0.002]
[1760275002224,3.4386691,3833.9,3833.8,0.002]
[1760275002424,0.83035903,3833.9,3833.8,0.002]
[1760275002626,0.1061,3833.9,3833.8,0.002]
[1760275002930,3.34801007,3833.9,3833.8,0.002]
[1760275003530,5.26801007,3833.9,3833.8,0.002]
[1760275021066,2.6597,3833.9,3833.8,0.002]
[1760275021373,2.71441007,3833.9,3833.8,0.002]
[1760275021589,3.88026922,3833.9,3833.8,0.002]
[1760275021734,5.80026922,3833.9,3833.8,0.002]
[1760275022683,5.16218223,3833.5,3833.4,1e-08]
[1760275023035,5.26828223,3833.5,3833.4,1e-08]
[1760275023491,5.67745912,3833.5,3833.4,1e-08]
[1760275023650,6.76689297,3833.5,3833.4,1e-08]
[1760275025191,6.87154159,3833.5,3833.4,1e-08]
[1760275030553,5.16272672,3832.7,3832.6,1e-08]
[1760275030855,3.24313524,3832.1,3832.0,1e-08]
[1760275031054,5.74839412,3832.1,3832.0,1e-08]
[1760275031460,5.85449412,3832.1,3832.0,1e-08]
[1760275031656,5.95917862,3832.1,3832.0,1e-08]
[1760275031907,5.85449412,3832.1,3832.0,1e-08]
[1760275037299,3.24347576,3831.6,3831.5,1e-08]
[1760275037521,5.48782334,3831.6,3831.5,1e-08]
[1760275037872,5.59732334,3831.6,3831.5,1e-08]